fUSD/lending_fUSD_20240615
["ID","MTS","AMOUNT","RATE_DAILY","PERIOD"]
[329585526,1718461894443,-5258.0912483,0.00022997,2]
[329585527,1718461894454,-7919.897523,0.00022997,2]
[329585528,1718461894501,-5059.393584,0.00022997,2]
[329585529,1718461894556,-218.43501777,0.00022999,2]
[329585530,1718461894581,-5901.39666759,0.00022999,2]
[329585531,1718461894606,-151.0,0.00022999,7]
[329585532,1718461894634,-151.0,0.00022999,7]
[329585533,1718461894646,-151.0,0.00022999,7]
[329585534,1718461894676,-500.0,0.00022999,3]
[329585535,1718461894714,-500.0,0.00022999,3]
[329585536,1718461894730,-500.0,0.00022999,3]
[329585537,1718461894747,-490.62790202,0.00022999,3]
[329585538,1718461894762,-1831.21,0.00022999,3]
[329585539,1718461894775,-1831.21,0.00022999,3]
[329585540,1718461894805,-1831.21,0.00022999,3]
[329585541,1718461894828,-1831.21,0.00022999,3]
[329585542,1718461894849,-151.0,0.00022999,7]
[329585543,1718461894927,-151.0,0.00022999,7]
[329585544,1718461894949,-151.0,0.00022999,7]
[329585545,1718461894984,-151.0,0.00022999,7]
[329585546,1718461895000,-151.0,0.00022999,7]
[329585547,1718461895012,-270.747908,0.00022999,7]
[329585548,1718461895026,-500.0,0.00022999,3]
[329585549,1718461895046,-500.0,0.00022999,3]
[329585550,1718461895064,-500.0,0.00022999,3]
[329585551,1718461895396,-500.0,0.00022999,3]
[329585552,1718461895436,-500.0,0.00022999,3]
[329585553,1718461895458,-270.747908,0.00022999,7]
[329585554,1718461895480,-56420.61139108,0.00023,13]
[329585555,1718461895837,-3332.49280195,0.00021916,2]
[329585556,1718461898429,-1106.19043976,0.00021916,2]
[329585557,1718461898441,-500.0,0.00022191,3]
[329585558,1718461898453,-500.0,0.00022191,3]
[329585559,1718461898466,-500.0,0.00022191,3]
[329585560,1718461898483,-500.0,0.00022191,3]
[329585561,1718461898496,-500.0,0.00022465,3]
[329585562,1718461898507,-500.0,0.00022465,3]
[329585563,1718461898526,-500.0,0.00022465,3]
[329585564,1718461898555,-242056.57694866,0.00023,13]
[329585565,1718461898570,-802666.92516103,0.00023,7]
[329585566,1718461898582,-249.55219366,0.00023,2]
[329585567,1718461898592,-5000.0,0.00023,2]
[329585568,1718461898606,-160.63664696,0.00023,2]
[329585569,1718461898622,-155.0,0.00023,2]
[329585570,1718461898637,-3342.76731935,0.00023,2]
[329585571,1718461898649,-291.0,0.00023,2]
[329585572,1718461898664,-1048.15420428,0.00023,2]
[329585573,1718461898676,-500.0,0.00023,2]
[329585574,1718461898687,-447.48423157,0.00023,2]
[329585575,1718461898699,-10000.0,0.00023,2]
[329585576,1718461898712,-1620.23889043,0.00023,7]
[329585577,1718461898725,-1361.92,0.00023,2]
[329585578,1718461898736,-489.0,0.00023,6]
[329585579,1718461898748,-151.0,0.00023,7]
[329585580,1718461898763,-151.0,0.00023,7]
[329585581,1718461898775,-291.519668,0.00023,7]
[329585582,1718461898787,-151.0,0.00023,7]
[329585583,1718461898816,-151.0,0.00023,7]
[329585584,1718461898830,-202.709205,0.00023,7]
[329585585,1718461898841,-151.0,0.00023,7]
[329585586,1718461898853,-172.0,0.00023,2]
[329585587,1718461898865,-151.0,0.00023,7]
[329585588,1718461898884,-151.0,0.00023,7]
[329585589,1718461898898,-151.0,0.00023,7]
[329585590,1718461898910,-151.0,0.00023,7]
[329585591,1718461898926,-151.0,0.00023,7]
[329585592,1718461898937,-151.0,0.00023,7]
[329585593,1718461898952,-151.0,0.00023,7]
[329585594,1718461898977,-151.0,0.00023,7]
[329585595,1718461899010,-151.0,0.00023,7]
[329585596,1718461899021,-151.0,0.00023,7]
[329585597,1718461899064,-151.0,0.00023,7]
[329585598,1718461899100,-151.0,0.00023,7]
[329585599,1718461899113,-151.0,0.00023,7]
[329585600,1718461899137,-151.0,0.00023,7]
[329585601,1718461899164,-151.0,0.00023,7]
[329585602,1718461899178,-151.0,0.00023,7]
[329585603,1718461899190,-161.567076,0.00023,7]
[329585604,1718461899202,-201.294395,0.00023,7]
[329585605,1718461899235,-151.0,0.00023,7]
[329585606,1718461899249,-151.0,0.00023,7]
[329585607,1718461899264,-300.116929,0.00023,7]
[329585608,1718461899307,-151.0,0.00023,7]
[329585609,1718461899321,-151.0,0.00023,7]
[329585610,1718461899353,-200.0,0.00023,2]
[329585611,1718461899372,-151.0,0.00023,7]
[329585612,1718461899400,-151.0,0.00023,7]
[329585613,1718461899413,-151.0,0.00023,7]
[329585614,1718461899446,-151.0,0.00023,7]
[329585615,1718461899465,-151.0,0.00023,7]
[329585616,1718461899479,-151.0,0.00023,7]
[329585617,1718461899504,-151.0,0.00023,7]
[329585618,1718461899515,-151.0,0.00023,7]
[329585619,1718461899529,-151.0,0.00023,7]
[329585620,1718461899559,-151.0,0.00023,7]
[329585621,1718461899576,-151.0,0.00023,7]
[329585622,1718461899590,-176.497914,0.00023,7]
[329585623,1718461899609,-151.0,0.00023,7]
[329585624,1718461899640,-152.303781,0.00023,7]
[329585625,1718461899666,-154.285002,0.00023,7]
[329585626,1718461899692,-151.0,0.00023,7]
[329585627,1718461899705,-151.0,0.00023,7]
[329585628,1718461899718,-151.0,0.00023,7]
[329585629,1718461899749,-151.0,0.00023,7]
[329585630,1718461899793,-287.844568,0.00023,7]
[329585631,1718461899806,-151.0,0.00023,7]
[329585632,1718461899824,-151.0,0.00023,7]
[329585633,1718461899846,-1300.0,0.00023,2]
[329585634,1718461899857,-151.0,0.00023,7]
[329585635,1718461899872,-151.0,0.00023,7]
[329585636,1718461899887,-802.821102,0.00023,7]
[329585637,1718461899938,-802.821102,0.00023,7]
[329585638,1718461899994,-802.821102,0.00023,7]
[329585639,1718461900041,-802.821102,0.00023,7]
[329585640,1718461900061,-151.0,0.00023,7]
[329585641,1718461900073,-151.0,0.00023,7]
[329585642,1718461900087,-151.0,0.00023,7]
[329585643,1718461900099,-151.0,0.00023,7]
[329585644,1718461900125,-158.3319,0.00023,7]
[329585645,1718461900147,-150.0,0.00023,3]
[329585646,1718461900159,-151.0,0.00023,7]
[329585647,1718461900174,-151.0,0.00023,7]
[329585648,1718461900186,-151.0,0.00023,7]
[329585649,1718461900236,-151.0,0.00023,7]
[329585650,1718461900269,-238.235126,0.00023,7]
[329585651,1718461900284,-270.747908,0.00023,7]
[329585652,1718461900305,-270.747908,0.00023,7]
[329585653,1718461900317,-270.747908,0.00023,7]
[329585654,1718461900340,-270.747908,0.00023,7]
[329585655,1718461900384,-151.0,0.00023,7]
[329585656,1718461900410,-161.704066,0.00023,7]
[329585657,1718461900455,-274.30054,0.00023,7]
[329585658,1718461900471,-556.85,0.00023013,3]
[329585659,1718461900488,-500.0,0.00023013,3]
[329585660,1718461900501,-500.0,0.00023013,3]
[329585661,1718461900513,-500.0,0.00023013,3]
[329585662,1718461900526,-500.0,0.00023013,3]
[329585663,1718461900539,-500.0,0.00023013,3]
[329585664,1718461900557,-177.93450478,0.00023013,3]
[329585665,1718461900601,-500.0,0.00023013,3]
[329585666,1718461900618,-500.0,0.00023013,3]
[329585667,1718461900635,-500.0,0.00023013,3]
[329585668,1718461900646,-500.0,0.00023013,3]
[329585669,1718461900669,-1119.66,0.00023013,3]
[329585670,1718461900685,-500.0,0.00023013,3]
[329585671,1718461900698,-500.0,0.00023013,3]
[329585672,1718461900719,-500.0,0.00023013,3]
[329585673,1718461900734,-500.0,0.00023013,3]
[329585674,1718461900777,-210.58,0.00023013,3]
[329585675,1718461900796,-500.0,0.00023013,3]
[329585676,1718461900808,-500.0,0.00023013,3]
[329585677,1718461900834,-500.0,0.00023013,3]
[329585678,1718461900857,-500.0,0.00023013,3]
[329585679,1718461900886,-500.0,0.00023013,3]
[329585680,1718461900904,-500.0,0.00023013,3]
[329585681,1718461900924,-500.0,0.00023013,3]
[329585682,1718461900946,-500.0,0.00023013,3]
[329585683,1718461900969,-500.0,0.00023013,3]
[329585684,1718461900994,-500.0,0.00023013,3]
[329585685,1718461901014,-500.0,0.00023013,3]
[329585686,1718461901030,-500.0,0.00023013,3]
[329585687,1718461901063,-158.88368418,0.00023013,3]
[329585688,1718461901128,-500.0,0.00023013,3]
[329585689,1718461901178,-649.63,0.00023013,3]
[329585690,1718461901216,-500.0,0.00023013,3]
[329585691,1718461901227,-603.60965107,0.00023013,3]
[329585692,1718461901238,-500.0,0.00023013,3]
[329585693,1718461901250,-500.0,0.00023013,3]
[329585694,1718461901265,-500.0,0.00023013,3]
[329585695,1718461901298,-500.0,0.00023013,3]
[329585696,1718461901320,-500.0,0.00023013,3]
[329585697,1718461901344,-150.0,0.00023013,3]
[329585698,1718461901355,-251.73466297,0.00023013,3]
[329585699,1718461901369,-500.0,0.00023013,3]
[329585700,1718461901408,-362.81422994,0.00023013,3]
[329585701,1718461901421,-500.0,0.00023013,3]
[329585702,1718461901444,-500.0,0.00023013,3]
[329585703,1718461901482,-192.47309227,0.00023013,3]
[329585704,1718461901494,-500.0,0.00023013,3]
[329585705,1718461901574,-500.0,0.00023013,3]
[329585706,1718461901655,-268.62,0.00023013,3]
[329585707,1718461901669,-500.0,0.00023013,3]
[329585708,1718461901690,-500.0,0.00023013,3]
[329585709,1718461901707,-500.0,0.00023013,3]
[329585710,1718461901748,-568.88,0.00023013,3]
[329585711,1718461901760,-500.0,0.00023013,3]
[329585712,1718461901780,-500.0,0.00023013,3]
[329585713,1718461901808,-500.0,0.00023013,3]
[329585714,1718461901836,-420.0394136,0.00023013,3]
[329585715,1718461901882,-1012.22,0.00023013,3]
[329585716,1718461901908,-500.0,0.00023013,3]
[329585717,1718461901937,-500.0,0.00023013,3]
[329585718,1718461901948,-500.0,0.00023013,3]
[329585719,1718461901965,-500.0,0.00023013,3]
[329585720,1718461902005,-500.0,0.00023013,3]
[329585721,1718461902028,-500.0,0.00023013,3]
[329585722,1718461902050,-500.0,0.00023013,3]
[329585723,1718461902067,-500.0,0.00023013,3]
[329585724,1718461902086,-500.0,0.00023013,3]
[329585725,1718461902097,-500.0,0.00023013,3]
[329585726,1718461902108,-500.0,0.00023013,3]
[329585727,1718461902119,-541.66,0.00023013,3]
[329585728,1718461902132,-2868.92,0.00023013,3]
[329585729,1718461902145,-616.2,0.00023013,3]
[329585730,1718461902212,-226.50782399,0.00023013,3]
[329585731,1718461902231,-1292.03,0.00023013,3]
[329585732,1718461902243,-469.56,0.00023013,3]
[329585733,1718461902274,-500.0,0.00023013,3]
[329585734,1718461902332,-500.0,0.00023013,3]
[329585735,1718461902366,-535.48,0.00023013,3]
[329585736,1718461902392,-606.09,0.00023013,3]
[329585737,1718461902413,-500.0,0.00023013,3]
[329585738,1718461902446,-2376.76,0.00023013,3]
[329585739,1718461902459,-500.0,0.00023013,3]
[329585740,1718461902475,-160.76,0.00023013,3]
[329585741,1718461902492,-500.0,0.00023013,3]
[329585742,1718461902514,-500.0,0.00023013,3]
[329585743,1718461902530,-523.51,0.00023013,3]
[329585744,1718461902543,-500.0,0.00023013,3]
[329585745,1718461902555,-681.04,0.00023013,3]
[329585746,1718461902568,-2766.91,0.00023013,3]
[329585747,1718461902594,-500.0,0.00023013,3]
[329585748,1718461902606,-500.0,0.00023013,3]
[329585749,1718461902619,-565.84,0.00023013,3]
[329585750,1718461902632,-500.0,0.00023013,3]
[329585751,1718461902646,-500.0,0.00023013,3]
[329585752,1718461902659,-500.0,0.00023013,3]
[329585753,1718461902698,-183.72095217,0.00023013,3]
[329585754,1718461902711,-789.55,0.00023013,3]
[329585755,1718461902726,-581.3061507,0.00023013,3]
[329585756,1718461902738,-198.19,0.00023013,3]
[329585757,1718461902751,-500.0,0.00023013,3]
[329585758,1718461902762,-500.0,0.00023013,3]
[329585759,1718461902774,-500.0,0.00023013,3]
[329585760,1718461902786,-500.0,0.00023013,3]
[329585761,1718461902799,-508.17,0.00023013,3]
[329585762,1718461902836,-500.0,0.00023013,3]
[329585763,1718461902856,-489.0,0.000232,6]
[329585764,1718461902884,-150.0,0.000232,2]
[329585765,1718461902897,-156.01393959,0.00023277,2]
[329585766,1718461902910,-500.0,0.00023287,3]
[329585767,1718461902922,-602.67974476,0.00023287,3]
[329585768,1718461902956,-500.0,0.00023287,3]
[329585769,1718461902980,-424.95201097,0.00023287,3]
[329585770,1718461902993,-500.0,0.00023287,3]
[329585771,1718461903154,-500.0,0.00023287,3]
[329585772,1718461903180,-500.0,0.00023287,3]
[329585773,1718461903194,-271.20393509,0.00023287,3]
[329585774,1718461903219,-500.0,0.00023287,3]
[329585775,1718461903257,-1119.66,0.00023287,3]
[329585776,1718461903273,-230.64648123,0.00023287,3]
[329585777,1718461903287,-500.0,0.00023287,3]
[329585778,1718461903309,-500.0,0.00023287,3]
[329585779,1718461903345,-500.0,0.00023287,3]
[329585780,1718461903357,-500.0,0.00023287,3]
[329585781,1718461903372,-500.0,0.00023287,3]
[329585782,1718461903388,-500.0,0.00023287,3]
[329585783,1718461903401,-500.0,0.00023287,3]
[329585784,1718461903415,-500.0,0.00023287,3]
[329585785,1718461903434,-500.0,0.00023287,3]
[329585786,1718461903469,-479.03658219,0.00023287,3]
[329585787,1718461903492,-500.0,0.00023287,3]
[329585788,1718461903516,-500.0,0.00023287,3]
[329585789,1718461903540,-500.0,0.00023287,3]
[329585790,1718461903568,-500.0,0.00023287,3]
[329585791,1718461903583,-467.64792123,0.00023287,3]
[329585792,1718461903598,-500.0,0.00023287,3]
[329585793,1718461903614,-500.0,0.00023287,3]
[329585794,1718461903642,-500.0,0.00023287,3]
[329585795,1718461903680,-500.0,0.00023287,3]
[329585796,1718461903696,-179.34855441,0.00023287,3]
[329585797,1718461903709,-500.0,0.00023287,3]
[329585798,1718461903729,-294.15200418,0.00023287,3]
[329585799,1718461903744,-150.0,0.00023287,3]
[329585800,1718461903770,-500.0,0.00023287,3]
[329585801,1718461903798,-151.0,0.00023287,7]
[329585802,1718461903834,-295.040948,0.00023287,7]
[329585803,1718461903851,-614.95670836,0.00023287,3]
[329585804,1718461903869,-500.0,0.00023287,3]
[329585805,1718461903886,-500.0,0.00023287,3]
[329585806,1718461903900,-500.0,0.00023287,3]
[329585807,1718461903915,-500.0,0.00023287,3]
[329585808,1718461903929,-266.36117964,0.00023287,3]
[329585809,1718461903953,-500.0,0.00023287,3]
[329585810,1718461903968,-599.85,0.00023287,3]
[329585811,1718461903987,-500.0,0.00023287,3]
[329585812,1718461904003,-500.0,0.00023287,3]
[329585813,1718461904021,-1012.22,0.00023287,3]
[329585814,1718461904042,-500.0,0.00023287,3]
[329585815,1718461904068,-164.21385731,0.00023287,3]
[329585816,1718461904104,-500.0,0.00023287,3]
[329585817,1718461904126,-500.0,0.00023287,3]
[329585818,1718461904141,-500.0,0.00023287,3]
[329585819,1718461904157,-500.0,0.00023287,3]
[329585820,1718461904171,-500.0,0.00023287,3]
[329585821,1718461904196,-500.0,0.00023287,3]
[329585822,1718461904219,-500.0,0.00023287,3]
[329585823,1718461904244,-500.0,0.00023287,3]
[329585824,1718461904259,-500.0,0.00023287,3]
[329585825,1718461904305,-541.66,0.00023287,3]
[329585826,1718461904322,-2868.92,0.00023287,3]
[329585827,1718461904341,-616.2,0.00023287,3]
[329585828,1718461904356,-1292.03,0.00023287,3]
[329585829,1718461904372,-500.0,0.00023287,3]
[329585830,1718461904403,-488.15526029,0.00023287,3]
[329585831,1718461904458,-535.48,0.00023287,3]
[329585832,1718461904490,-606.09,0.00023287,3]
[329585833,1718461904513,-500.0,0.00023287,3]
[329585834,1718461904527,-2376.76,0.00023287,3]
[329585835,1718461904541,-320.94,0.00023287,3]
[329585836,1718461904555,-201.08749999,0.00023287,3]
[329585837,1718461904570,-500.0,0.00023287,3]
[329585838,1718461904582,-500.0,0.00023287,3]
[329585839,1718461904602,-681.04,0.00023287,3]
[329585840,1718461904627,-2766.91,0.00023287,3]
[329585841,1718461904642,-500.0,0.00023287,3]
[329585842,1718461904655,-500.0,0.00023287,3]
[329585843,1718461904672,-500.0,0.00023287,3]
[329585844,1718461904689,-500.0,0.00023287,3]
[329585845,1718461904716,-500.0,0.00023287,3]
[329585846,1718461904731,-789.55,0.00023287,3]
[329585847,1718461904748,-500.0,0.00023287,3]
[329585848,1718461904776,-500.0,0.00023287,3]
[329585849,1718461904793,-500.0,0.00023287,3]
[329585850,1718461904814,-500.0,0.00023287,3]
[329585851,1718461904838,-508.17,0.00023287,3]
[329585852,1718461904866,-230.52884488,0.00023287,3]
[329585853,1718461904891,-480.17831618,0.00023296,3]
[329585854,1718461904917,-3683.12,0.00023297,2]
[329585855,1718461904937,-4154.78,0.000234,2]
[329585856,1718461904975,-150.0,0.000235,3]
[329585857,1718461904991,-500.0,0.00023561,3]
[329585858,1718461905041,-500.0,0.00023561,3]
[329585859,1718461905060,-500.0,0.00023561,3]
[329585860,1718461905082,-500.0,0.00023561,3]
[329585861,1718461905116,-500.0,0.00023561,3]
[329585862,1718461905134,-500.0,0.00023561,3]
[329585863,1718461905147,-1119.66,0.00023561,3]
[329585864,1718461905159,-500.0,0.00023561,3]
[329585865,1718461905170,-500.0,0.00023561,3]
[329585866,1718461905192,-500.0,0.00023561,3]
[329585867,1718461905231,-500.0,0.00023561,3]
[329585868,1718461905244,-475.20354021,0.00023561,3]
[329585869,1718461905261,-500.0,0.00023561,3]
[329585870,1718461905275,-500.0,0.00023561,3]
[329585871,1718461905304,-500.0,0.00023561,3]
[329585872,1718461905316,-218.34424359,0.00023561,3]
[329585873,1718461905340,-500.0,0.00023561,3]
[329585874,1718461905354,-500.0,0.00023561,3]
[329585875,1718461905367,-500.0,0.00023561,3]
[329585876,1718461905381,-500.0,0.00023561,3]
[329585877,1718461905421,-500.0,0.00023561,3]
[329585878,1718461905459,-500.0,0.00023561,3]
[329585879,1718461905482,-500.0,0.00023561,3]
[329585880,1718461905497,-447.42051722,0.00023561,3]
[329585881,1718461905520,-150.0,0.00023561,3]
[329585882,1718461905541,-187.28576929,0.00023561,3]
[329585883,1718461905560,-500.0,0.00023561,3]
[329585884,1718461905575,-500.0,0.00023561,3]
[329585885,1718461905591,-500.0,0.00023561,3]
[329585886,1718461905622,-500.0,0.00023561,3]
[329585887,1718461905666,-500.0,0.00023561,3]
[329585888,1718461905688,-500.0,0.00023561,3]
[329585889,1718461905721,-500.0,0.00023561,3]
[329585890,1718461905732,-1012.22,0.00023561,3]
[329585891,1718461905751,-500.0,0.00023561,3]
[329585892,1718461905794,-500.0,0.00023561,3]
[329585893,1718461905836,-500.0,0.00023561,3]
[329585894,1718461905872,-550.95305952,0.00023561,3]
[329585895,1718461905903,-500.0,0.00023561,3]
[329585896,1718461905936,-500.0,0.00023561,3]
[329585897,1718461905956,-500.0,0.00023561,3]
[329585898,1718461905970,-500.0,0.00023561,3]
[329585899,1718461906002,-500.0,0.00023561,3]
[329585900,1718461906015,-500.0,0.00023561,3]
[329585901,1718461906037,-541.66,0.00023561,3]
[329585902,1718461906052,-2868.92,0.00023561,3]
[329585903,1718461906074,-616.2,0.00023561,3]
[329585904,1718461906101,-1292.03,0.00023561,3]
[329585905,1718461906116,-500.0,0.00023561,3]
[329585906,1718461906140,-535.48,0.00023561,3]
[329585907,1718461906155,-606.09,0.00023561,3]
[329585908,1718461906179,-500.0,0.00023561,3]
[329585909,1718461906209,-2376.76,0.00023561,3]
[329585910,1718461906243,-500.0,0.00023561,3]
[329585911,1718461906264,-500.0,0.00023561,3]
[329585912,1718461906288,-681.04,0.00023561,3]
[329585913,1718461906329,-2766.91,0.00023561,3]
[329585914,1718461906356,-500.0,0.00023561,3]
[329585915,1718461906390,-500.0,0.00023561,3]
[329585916,1718461906440,-500.0,0.00023561,3]
[329585917,1718461906456,-282.0527833,0.00023561,3]
[329585918,1718461906479,-500.0,0.00023561,3]
[329585919,1718461906512,-789.55,0.00023561,3]
[329585920,1718461906525,-500.0,0.00023561,3]
[329585921,1718461906537,-500.0,0.00023561,3]
[329585922,1718461906564,-500.0,0.00023561,3]
[329585923,1718461906575,-500.0,0.00023561,3]
[329585924,1718461906605,-508.17,0.00023561,3]
[329585925,1718461906620,-417.549,0.00023758,2]
[329585926,1718461906634,-171.12979608,0.0002378,2]
[329585927,1718461906645,-159.34783532,0.000238,2]
[329585928,1718461906665,-401.98054125,0.00023829,2]
[329585929,1718461906676,-1831.21,0.00023834,3]
[329585930,1718461906692,-500.0,0.00023834,3]
[329585931,1718461906714,-500.0,0.00023835,3]
[329585932,1718461906728,-500.0,0.00023835,3]
[329585933,1718461906739,-500.0,0.00023835,3]
[329585934,1718461906751,-500.0,0.00023835,3]
[329585935,1718461906764,-367.69587424,0.00023835,3]
[329585936,1718461906780,-500.0,0.00023835,3]
[329585937,1718461906790,-1119.66,0.00023835,3]
[329585938,1718461906801,-500.0,0.00023835,3]
[329585939,1718461906813,-500.0,0.00023835,3]
[329585940,1718461906824,-500.0,0.00023835,3]
[329585941,1718461906835,-500.0,0.00023835,3]
[329585942,1718461906846,-319.64,0.00023835,3]
[329585943,1718461906860,-500.0,0.00023835,3]
[329585944,1718461906872,-500.0,0.00023835,3]
[329585945,1718461906886,-500.0,0.00023835,3]
[329585946,1718461906899,-275.51813782,0.00023835,3]
[329585947,1718461906910,-500.0,0.00023835,3]
[329585948,1718461906923,-506.18,0.00023835,3]
[329585949,1718461906934,-288.41,0.00023835,3]
[329585950,1718461906946,-326.48794747,0.00023835,3]
[329585951,1718461906962,-500.0,0.00023835,3]
[329585952,1718461906976,-150.0,0.00023835,3]
[329585953,1718461906990,-500.0,0.00023835,3]
[329585954,1718461907004,-500.0,0.00023835,3]
[329585955,1718461907030,-500.0,0.00023835,3]
[329585956,1718461907046,-500.0,0.00023835,3]
[329585957,1718461907059,-500.0,0.00023835,3]
[329585958,1718461907083,-603.5,0.00023835,3]
[329585959,1718461907102,-500.0,0.00023835,3]
[329585960,1718461907129,-1012.22,0.00023835,3]
[329585961,1718461907144,-500.0,0.00023835,3]
[329585962,1718461907158,-500.0,0.00023835,3]
[329585963,1718461907172,-500.0,0.00023835,3]
[329585964,1718461907189,-500.0,0.00023835,3]
[329585965,1718461907224,-594.74762834,0.00023835,3]
[329585966,1718461907239,-500.0,0.00023835,3]
[329585967,1718461907277,-500.0,0.00023835,3]
[329585968,1718461907293,-378.76828446,0.00023835,3]
[329585969,1718461907307,-515.55394542,0.00023835,3]
[329585970,1718461907331,-541.66,0.00023835,3]
[329585971,1718461907351,-2868.92,0.00023835,3]
[329585972,1718461907379,-616.2,0.00023835,3]
[329585973,1718461907427,-1292.03,0.00023835,3]
[329585974,1718461907449,-536.11160257,0.00023835,3]
[329585975,1718461907473,-535.48,0.00023835,3]
[329585976,1718461907494,-606.09,0.00023835,3]
[329585977,1718461907516,-500.0,0.00023835,3]
[329585978,1718461907560,-2376.76,0.00023835,3]
[329585979,1718461907585,-274.5789233,0.00023835,3]
[329585980,1718461907597,-500.0,0.00023835,3]
[329585981,1718461907632,-681.04,0.00023835,3]
[329585982,1718461907665,-2766.91,0.00023835,3]
[329585983,1718461907685,-500.0,0.00023835,3]
[329585984,1718461907705,-500.0,0.00023835,3]
[329585985,1718461907729,-500.0,0.00023835,3]
[329585986,1718461907759,-500.0,0.00023835,3]
[329585987,1718461907773,-789.55,0.00023835,3]
[329585988,1718461907807,-500.0,0.00023835,3]
[329585989,1718461907820,-500.0,0.00023835,3]
[329585990,1718461907839,-500.0,0.00023835,3]
[329585991,1718461907865,-500.0,0.00023835,3]
[329585992,1718461907901,-508.17,0.00023835,3]
[329585993,1718461907924,-151.0,0.00023845,7]
[329585994,1718461907938,-151.0,0.00023845,7]
[329585995,1718461907951,-270.747908,0.00023845,7]
[329585996,1718461907982,-270.747908,0.00023845,7]
[329585997,1718461908001,-3672.257,0.00023845,2]
[329585998,1718461908029,-1831.21,0.00023878,3]
[329585999,1718461908049,-151.0,0.00023879,7]
[329586000,1718461908071,-151.0,0.00023879,7]
[329586001,1718461908092,-1831.21,0.00023879,3]
[329586002,1718461908127,-1831.21,0.00023879,3]
[329586003,1718461908140,-500.0,0.00023879,3]
[329586004,1718461908164,-423911.93318464,0.0002388,2]
[329586005,1718461908202,-154.224481,0.0002388,7]
[329586006,1718461908213,-152.96466,0.0002388,7]
[329586007,1718461908225,-151.0,0.0002388,7]
[329586008,1718461908238,-158.303826,0.0002388,7]
[329586009,1718461908255,-151.979995,0.0002388,7]
[329586010,1718461908268,-154.946185,0.0002388,7]
[329586011,1718461908288,-151.0,0.0002388,7]
[329586012,1718461908322,-151.0,0.0002388,7]
[329586013,1718461908339,-151.0,0.0002388,7]
[329586014,1718461908352,-151.0,0.0002388,7]
[329586015,1718461908375,-151.0,0.0002388,7]
[329586016,1718461908412,-151.0,0.0002388,7]
[329586017,1718461908441,-151.0,0.0002388,7]
[329586018,1718461908453,-154.638212,0.0002388,7]
[329586019,1718461908535,-151.0,0.0002388,7]
[329586020,1718461908547,-151.0,0.0002388,7]
[329586021,1718461908557,-151.0,0.0002388,7]
[329586022,1718461908568,-151.0,0.0002388,7]
[329586023,1718461908588,-151.0,0.0002388,7]
[329586024,1718461908600,-216.418412,0.0002388,7]
[329586025,1718461908613,-151.0,0.0002388,7]